fUSD/lending_fUSD_20260622
["ID","MTS","AMOUNT","RATE_DAILY","PERIOD"]
[426026542,1782119507000,-500.0,0.00028219,2]
[426026514,1782119507000,-590.3,0.00028219,2]
[426026527,1782119507000,-500.0,0.00028219,2]
[426026512,1782119507000,-500.0,0.00028219,2]
[426026498,1782119507000,-500.0,0.00028219,2]
[426026506,1782119507000,-797.6,0.00028219,2]
[426026486,1782119507000,-500.0,0.00028219,2]
[426026544,1782119507000,-500.0,0.00028219,2]
[426026489,1782119507000,-500.0,0.00028219,2]
[426026487,1782119507000,-9518.63,0.00028219,2]
[426026488,1782119507000,-3042.84,0.00028219,2]
[426026485,1782119507000,-500.0,0.00028219,2]
[426026490,1782119507000,-4676.3,0.00028219,2]
[426026491,1782119507000,-818.02,0.00028219,2]
[426026493,1782119507000,-523.28204838,0.00028219,2]
[426026496,1782119507000,-791.7,0.00028219,2]
[426026495,1782119507000,-5655.05,0.00028219,2]
[426026500,1782119507000,-539.94,0.00028219,2]
[426026511,1782119507000,-500.0,0.00028219,2]
[426026494,1782119507000,-500.0,0.00028219,2]
[426026501,1782119507000,-500.0,0.00028219,2]
[426026499,1782119507000,-500.0,0.00028219,2]
[426026492,1782119507000,-1146.99,0.00028219,2]
[426026503,1782119507000,-1000.0,0.00028219,2]
[426026513,1782119507000,-429.47885478,0.00028219,2]
[426026502,1782119507000,-1005.54,0.00028219,2]
[426026508,1782119507000,-500.0,0.00028219,2]
[426026509,1782119507000,-500.0,0.00028219,2]
[426026504,1782119507000,-6491.92,0.00028219,2]
[426026510,1782119507000,-500.0,0.00028219,2]
[426026505,1782119507000,-790.5,0.00028219,2]
[426026507,1782119507000,-1333.85,0.00028219,2]
[426026497,1782119507000,-500.0,0.00028219,2]
[426026484,1782119507000,-500.0,0.00028219,2]
[426026540,1782119507000,-2610.22,0.00028219,2]
[426026538,1782119507000,-500.0,0.00028219,2]
[426026572,1782119507000,-400.26,0.000284,7]
[426026574,1782119507000,-383.0,0.00028468,2]
[426026575,1782119507000,-622.11459867,0.00028493,2]
[426026577,1782119507000,-500.0,0.00028493,2]
[426026576,1782119507000,-500.0,0.00028493,2]
[426026580,1782119507000,-500.0,0.00028493,2]
[426026581,1782119507000,-500.0,0.00028493,2]
[426026579,1782119507000,-273.70444634,0.00028493,2]
[426026578,1782119507000,-500.0,0.00028493,2]
[426026582,1782119507000,-474.40344101,0.00028493,2]
[426026584,1782119507000,-755.89,0.00028493,2]
[426026588,1782119507000,-500.0,0.00028493,2]
[426026583,1782119507000,-500.0,0.00028493,2]
[426026589,1782119507000,-500.0,0.00028493,2]
[426026590,1782119507000,-500.0,0.00028493,2]
[426026591,1782119507000,-500.0,0.00028493,2]
[426026587,1782119507000,-500.0,0.00028493,2]
[426026586,1782119507000,-500.0,0.00028493,2]
[426026593,1782119507000,-500.0,0.00028493,2]
[426026592,1782119507000,-500.0,0.00028493,2]
[426026594,1782119507000,-500.0,0.00028493,2]
[426026596,1782119507000,-649.63,0.00028493,2]
[426026595,1782119507000,-700.0,0.00028493,2]
[426026598,1782119507000,-547.08,0.00028493,2]
[426026537,1782119507000,-500.0,0.00028219,2]
[426026597,1782119507000,-500.0,0.00028493,2]
[426026585,1782119507000,-500.0,0.00028493,2]
[426026573,1782119507000,-209.0,0.00028408,2]
[426026599,1782119507000,-500.0,0.00028493,2]
[426026570,1782119507000,-276.1356779,0.00028397,7]
[426026571,1782119507000,-1063.8,0.000284,7]
[426026543,1782119507000,-610.81869741,0.00028219,2]
[426026541,1782119507000,-500.0,0.00028219,2]
[426026548,1782119507000,-4000.0,0.00028234,7]
[426026546,1782119507000,-150.0,0.00028219,2]
[426026550,1782119507000,-723.97004214,0.00028248,2]
[426026560,1782119507000,-38794.5678309,0.00028305,2]
[426026557,1782119507000,-698.5801494,0.00028305,2]
[426026554,1782119507000,-512.80349166,0.00028287,2]
[426026556,1782119507000,-152.0,0.00028305,7]
[426026559,1782119507000,-4181.5992526,0.00028305,2]
[426026551,1782119507000,-785.0,0.00028251,2]
[426026549,1782119507000,-453.41657342,0.00028248,2]
[426026547,1782119507000,-200.0,0.00028227,2]
[426026553,1782119507000,-759.24,0.00028279,2]
[426026552,1782119507000,-332.0,0.00028267,2]
[426026565,1782119507000,-1911.58,0.00028357,2]
[426026562,1782119507000,-1000.0,0.00028315,2]
[426026564,1782119507000,-2358.78,0.00028356,2]
[426026569,1782119507000,-166.0,0.0002836,3]
[426026568,1782119507000,-2366.05,0.00028357,2]
[426026566,1782119507000,-2371.22,0.00028357,2]
[426026563,1782119507000,-350.0,0.00028344,4]
[426026561,1782119507000,-449.4857942,0.00028305,2]
[426026558,1782119507000,-164.292476,0.00028305,2]
[426026555,1782119507000,-290.3986294,0.00028305,2]
[426026567,1782119507000,-1519.5,0.00028357,2]
[426026639,1782119508000,-500.0,0.00028493,2]
[426026640,1782119508000,-547.4,0.00028493,2]
[426026634,1782119508000,-269.487976,0.00028493,7]
[426026607,1782119508000,-500.0,0.00028493,2]
[426026635,1782119508000,-500.0,0.00028493,2]
[426026637,1782119508000,-801.22,0.00028493,2]
[426026623,1782119508000,-500.0,0.00028493,2]
[426026624,1782119508000,-500.0,0.00028493,2]
[426026636,1782119508000,-500.0,0.00028493,2]
[426026633,1782119508000,-500.0,0.00028493,2]
[426026625,1782119508000,-500.0,0.00028493,2]
[426026646,1782119508000,-500.0,0.00028493,2]
[426026642,1782119508000,-627.05,0.00028493,2]
[426026643,1782119508000,-500.0,0.00028493,2]
[426026645,1782119508000,-1165.61,0.00028493,2]
[426026644,1782119508000,-500.0,0.00028493,2]
[426026648,1782119508000,-500.0,0.00028493,2]
[426026647,1782119508000,-594.11,0.00028493,2]
[426026649,1782119508000,-500.0,0.00028493,2]
[426026653,1782119508000,-500.0,0.00028493,2]
[426026652,1782119508000,-624.72,0.00028493,2]
[426026651,1782119508000,-500.0,0.00028493,2]
[426026650,1782119508000,-894.92,0.00028493,2]
[426026627,1782119508000,-500.0,0.00028493,2]
[426026641,1782119508000,-500.0,0.00028493,2]
[426026628,1782119508000,-151.0,0.00028493,7]
[426026614,1782119508000,-500.0,0.00028493,2]
[426026631,1782119508000,-500.0,0.00028493,2]
[426026606,1782119508000,-500.0,0.00028493,2]
[426026601,1782119508000,-613.47,0.00028493,2]
[426026600,1782119508000,-500.0,0.00028493,2]
[426026602,1782119508000,-500.0,0.00028493,2]
[426026603,1782119508000,-500.0,0.00028493,2]
[426026605,1782119508000,-721.94,0.00028493,2]
[426026604,1782119508000,-500.0,0.00028493,2]
[426026608,1782119508000,-500.0,0.00028493,2]
[426026611,1782119508000,-151.0,0.00028493,7]
[426026610,1782119508000,-500.0,0.00028493,2]
[426026612,1782119508000,-500.0,0.00028493,2]
[426026630,1782119508000,-500.0,0.00028493,2]
[426026613,1782119508000,-500.0,0.00028493,2]
[426026616,1782119508000,-500.0,0.00028493,2]
[426026617,1782119508000,-500.0,0.00028493,2]
[426026609,1782119508000,-500.0,0.00028493,2]
[426026618,1782119508000,-500.0,0.00028493,2]
[426026619,1782119508000,-500.0,0.00028493,2]
[426026620,1782119508000,-503.07549493,0.00028493,2]
[426026621,1782119508000,-500.0,0.00028493,2]
[426026654,1782119508000,-500.0,0.00028493,2]
[426026626,1782119508000,-588.29,0.00028493,2]
[426026629,1782119508000,-662.46,0.00028493,2]
[426026632,1782119508000,-500.0,0.00028493,2]
[426026615,1782119508000,-151.0,0.00028493,7]
[426026655,1782119508000,-664.27,0.00028493,2]
[426026622,1782119508000,-500.0,0.00028493,2]
[426026658,1782119508000,-500.0,0.00028493,2]
[426026686,1782119508000,-500.0,0.00028493,2]
[426026689,1782119508000,-911.74,0.00028493,2]
[426026690,1782119508000,-500.0,0.00028493,2]
[426026688,1782119508000,-500.0,0.00028493,2]
[426026691,1782119508000,-1215.39,0.00028493,2]
[426026695,1782119508000,-500.0,0.00028493,2]
[426026692,1782119508000,-761.7,0.00028493,2]
[426026694,1782119508000,-500.0,0.00028493,2]
[426026693,1782119508000,-571.02,0.00028493,2]
[426026697,1782119508000,-538.75,0.00028493,2]
[426026707,1782119508000,-350.81061041,0.00028493,2]
[426026696,1782119508000,-500.0,0.00028493,2]
[426026698,1782119508000,-1060.0,0.00028493,2]
[426026699,1782119508000,-612.94259014,0.00028493,2]
[426026701,1782119508000,-500.0,0.00028493,2]
[426026706,1782119508000,-500.0,0.00028493,2]
[426026702,1782119508000,-500.0,0.00028493,2]
[426026704,1782119508000,-500.0,0.00028493,2]
[426026700,1782119508000,-500.0,0.00028493,2]
[426026705,1782119508000,-616.73,0.00028493,2]
[426026703,1782119508000,-529.3,0.00028493,2]
[426026710,1782119508000,-500.0,0.00028493,2]
[426026708,1782119508000,-500.0,0.00028493,2]
[426026709,1782119508000,-636.52,0.00028493,2]
[426026659,1782119508000,-500.0,0.00028493,2]
[426026685,1782119508000,-500.0,0.00028493,2]
[426026687,1782119508000,-1222.37,0.00028493,2]
[426026638,1782119508000,-500.0,0.00028493,2]
[426026684,1782119508000,-500.0,0.00028493,2]
[426026657,1782119508000,-158.62825185,0.00028493,2]
[426026683,1782119508000,-500.0,0.00028493,2]
[426026660,1782119508000,-500.0,0.00028493,2]
[426026656,1782119508000,-500.0,0.00028493,2]
[426026661,1782119508000,-500.0,0.00028493,2]
[426026663,1782119508000,-721.65,0.00028493,2]
[426026664,1782119508000,-500.0,0.00028493,2]
[426026665,1782119508000,-500.0,0.00028493,2]
[426026667,1782119508000,-500.0,0.00028493,2]
[426026666,1782119508000,-500.0,0.00028493,2]
[426026668,1782119508000,-500.0,0.00028493,2]
[426026669,1782119508000,-500.0,0.00028493,2]
[426026662,1782119508000,-776.0,0.00028493,2]
[426026671,1782119508000,-500.0,0.00028493,2]
[426026672,1782119508000,-500.0,0.00028493,2]
[426026682,1782119508000,-662.21,0.00028493,2]
[426026680,1782119508000,-500.0,0.00028493,2]
[426026681,1782119508000,-500.0,0.00028493,2]
[426026679,1782119508000,-338.28761882,0.00028493,2]
[426026677,1782119508000,-517.36,0.00028493,2]
[426026678,1782119508000,-1260.42,0.00028493,2]
[426026676,1782119508000,-500.0,0.00028493,2]
[426026673,1782119508000,-500.0,0.00028493,2]
[426026675,1782119508000,-500.0,0.00028493,2]
[426026670,1782119508000,-2003.52,0.00028493,2]
[426026674,1782119508000,-500.0,0.00028493,2]
[426026751,1782119509000,-1643.99,0.00028493,2]
[426026750,1782119509000,-500.0,0.00028493,2]
[426026748,1782119509000,-525.16,0.00028493,2]
[426026747,1782119509000,-409.00673775,0.00028493,2]
[426026746,1782119509000,-500.0,0.00028493,2]
[426026755,1782119509000,-500.0,0.00028493,2]
[426026745,1782119509000,-500.0,0.00028493,2]
[426026756,1782119509000,-639.31,0.00028493,2]
[426026757,1782119509000,-500.0,0.00028493,2]
[426026738,1782119509000,-500.0,0.00028493,2]
[426026740,1782119509000,-500.0,0.00028493,2]
[426026744,1782119509000,-500.0,0.00028493,2]
[426026749,1782119509000,-500.0,0.00028493,2]
[426026767,1782119509000,-500.0,0.00028493,2]
[426026752,1782119509000,-500.0,0.00028493,2]
[426026754,1782119509000,-579.91,0.00028493,2]
[426026758,1782119509000,-500.0,0.00028493,2]
[426026762,1782119509000,-575.98,0.00028493,2]
[426026770,1782119509000,-812.29,0.00028493,2]
[426026760,1782119509000,-500.0,0.00028493,2]
[426026761,1782119509000,-500.0,0.00028493,2]
[426026764,1782119509000,-500.0,0.00028493,2]
[426026763,1782119509000,-500.0,0.00028493,2]
[426026759,1782119509000,-500.0,0.00028493,2]
[426026765,1782119509000,-500.0,0.00028493,2]
[426026742,1782119509000,-500.0,0.00028493,2]
[426026753,1782119509000,-575.67,0.00028493,2]
[426026739,1782119509000,-500.0,0.00028493,2]
[426026721,1782119509000,-553.44,0.00028493,2]
[426026741,1782119509000,-500.0,0.00028493,2]
[426026711,1782119509000,-500.0,0.00028493,2]
[426026714,1782119509000,-500.0,0.00028493,2]
[426026717,1782119509000,-1302.58,0.00028493,2]
[426026718,1782119509000,-500.0,0.00028493,2]
[426026716,1782119509000,-500.0,0.00028493,2]
[426026713,1782119509000,-1212.61,0.00028493,2]
[426026712,1782119509000,-204.27295987,0.00028493,2]
[426026715,1782119509000,-500.0,0.00028493,2]
[426026720,1782119509000,-500.0,0.00028493,2]
[426026730,1782119509000,-500.0,0.00028493,2]
[426026719,1782119509000,-965.81,0.00028493,2]
[426026723,1782119509000,-524.42,0.00028493,2]
[426026725,1782119509000,-2921.9,0.00028493,2]
[426026729,1782119509000,-500.0,0.00028493,2]
[426026724,1782119509000,-533.69,0.00028493,2]
[426026768,1782119509000,-852.64,0.00028493,2]
[426026722,1782119509000,-500.0,0.00028493,2]
[426026726,1782119509000,-500.0,0.00028493,2]
[426026727,1782119509000,-851.69,0.00028493,2]
[426026728,1782119509000,-500.0,0.00028493,2]
[426026731,1782119509000,-500.0,0.00028493,2]
[426026733,1782119509000,-503.90922062,0.00028493,2]
[426026736,1782119509000,-4305.18,0.00028493,2]
[426026734,1782119509000,-779.48,0.00028493,2]
[426026735,1782119509000,-500.0,0.00028493,2]
[426026743,1782119509000,-765.97,0.00028493,2]
[426026737,1782119509000,-645.46,0.00028493,2]
[426026732,1782119509000,-500.0,0.00028493,2]
[426026766,1782119509000,-500.0,0.00028493,2]
[426026769,1782119509000,-509.39,0.00028493,2]
[426026771,1782119509000,-508.19,0.00028493,2]
[426026805,1782119509000,-500.0,0.00028493,2]
[426026801,1782119509000,-730.03,0.00028493,2]
[426026806,1782119509000,-500.0,0.00028493,2]
[426026816,1782119509000,-500.0,0.00028493,2]
[426026807,1782119509000,-500.0,0.00028493,2]
[426026809,1782119509000,-500.0,0.00028493,2]
[426026814,1782119509000,-500.0,0.00028493,2]
[426026812,1782119509000,-500.0,0.00028493,2]
[426026810,1782119509000,-500.0,0.00028493,2]
[426026808,1782119509000,-511.12430351,0.00028493,2]
[426026811,1782119509000,-541.25,0.00028493,2]
[426026817,1782119509000,-500.0,0.00028493,2]
[426026815,1782119509000,-500.0,0.00028493,2]
[426026803,1782119509000,-500.0,0.00028493,2]
[426026813,1782119509000,-500.0,0.00028493,2]
[426026829,1782119509000,-500.0,0.00028493,2]
[426026820,1782119509000,-500.0,0.00028493,2]
[426026821,1782119509000,-536.97,0.00028493,2]
[426026822,1782119509000,-500.0,0.00028493,2]
[426026830,1782119509000,-500.0,0.00028493,2]
[426026818,1782119509000,-500.0,0.00028493,2]
[426026772,1782119509000,-720.67,0.00028493,2]
[426026823,1782119509000,-500.0,0.00028493,2]
[426026825,1782119509000,-500.0,0.00028493,2]
[426026826,1782119509000,-500.0,0.00028493,2]
[426026828,1782119509000,-500.0,0.00028493,2]
[426026827,1782119509000,-897.75,0.00028493,2]
[426026831,1782119509000,-500.0,0.00028493,2]
[426026819,1782119509000,-520.88175004,0.00028493,2]
[426026802,1782119509000,-500.0,0.00028493,2]
[426026824,1782119509000,-535.38,0.00028493,2]
[426026804,1782119509000,-653.56,0.00028493,2]
[426026800,1782119509000,-500.0,0.00028493,2]
[426026782,1782119509000,-526.09,0.00028493,2]
[426026775,1782119509000,-500.0,0.00028493,2]
[426026781,1782119509000,-500.0,0.00028493,2]
[426026776,1782119509000,-633.18,0.00028493,2]
[426026774,1782119509000,-561.33,0.00028493,2]
[426026777,1782119509000,-500.0,0.00028493,2]
[426026773,1782119509000,-500.0,0.00028493,2]
[426026779,1782119509000,-500.0,0.00028493,2]
[426026778,1782119509000,-500.0,0.00028493,2]
[426026783,1782119509000,-500.0,0.00028493,2]
[426026785,1782119509000,-879.31,0.00028493,2]
[426026784,1782119509000,-436.93719707,0.00028493,2]
[426026780,1782119509000,-500.0,0.00028493,2]
[426026792,1782119509000,-1083.19,0.00028493,2]
[426026786,1782119509000,-523.99,0.00028493,2]
[426026799,1782119509000,-869.72,0.00028493,2]
[426026798,1782119509000,-705.3,0.00028493,2]
[426026796,1782119509000,-500.0,0.00028493,2]
[426026789,1782119509000,-500.0,0.00028493,2]
[426026790,1782119509000,-4687.67,0.00028493,2]
[426026795,1782119509000,-501.58,0.00028493,2]
[426026788,1782119509000,-449.69939383,0.00028493,2]
[426026794,1782119509000,-500.0,0.00028493,2]
[426026787,1782119509000,-500.0,0.00028493,2]
[426026791,1782119509000,-500.0,0.00028493,2]
[426026793,1782119509000,-500.0,0.00028493,2]
[426026797,1782119509000,-500.0,0.00028493,2]
[426026857,1782119510000,-500.0,0.00028493,2]
[426026856,1782119510000,-671.19,0.00028493,2]
[426026876,1782119510000,-500.0,0.00028493,2]
[426026859,1782119510000,-523.96361193,0.00028493,2]
[426026862,1782119510000,-39661.016941,0.00028493,2]
[426026861,1782119510000,-1462.67,0.00028493,2]
[426026854,1782119510000,-500.0,0.00028493,2]
[426026860,1782119510000,-500.0,0.00028493,2]
[426026863,1782119510000,-806.07,0.00028493,2]
[426026866,1782119510000,-636.06,0.00028493,2]
[426026872,1782119510000,-592.34,0.00028493,2]
[426026865,1782119510000,-4107.37,0.00028493,2]
[426026869,1782119510000,-500.0,0.00028493,2]
[426026874,1782119510000,-500.0,0.00028493,2]
[426026873,1782119510000,-500.0,0.00028493,2]
[426026871,1782119510000,-500.0,0.00028493,2]
[426026870,1782119510000,-500.0,0.00028493,2]
[426026875,1782119510000,-478.34935724,0.00028493,2]
[426026878,1782119510000,-723.93,0.00028493,2]
[426026858,1782119510000,-751.33,0.00028493,2]
[426026879,1782119510000,-162.70512157,0.00028493,2]
[426026868,1782119510000,-500.0,0.00028493,2]
[426026864,1782119510000,-500.0,0.00028493,2]
[426026837,1782119510000,-803.96,0.00028493,2]
[426026853,1782119510000,-500.0,0.00028493,2]
[426026877,1782119510000,-151.809928,0.00028493,2]
[426026833,1782119510000,-269.26571735,0.00028493,2]
[426026836,1782119510000,-500.0,0.00028493,2]
[426026840,1782119510000,-501.74077227,0.00028493,2]
[426026832,1782119510000,-516.18713072,0.00028493,2]
[426026834,1782119510000,-500.0,0.00028493,2]
[426026835,1782119510000,-500.0,0.00028493,2]
[426026839,1782119510000,-620.31597617,0.00028493,2]
[426026841,1782119510000,-500.0,0.00028493,2]
[426026838,1782119510000,-763.71,0.00028493,2]
[426026843,1782119510000,-599.37,0.00028493,2]
[426026845,1782119510000,-637.55,0.00028493,2]
[426026846,1782119510000,-500.0,0.00028493,2]
[426026844,1782119510000,-523.88,0.00028493,2]
[426026842,1782119510000,-500.0,0.00028493,2]
[426026850,1782119510000,-500.0,0.00028493,2]
[426026847,1782119510000,-500.0,0.00028493,2]
[426026848,1782119510000,-823.1,0.00028493,2]
[426026851,1782119510000,-500.0,0.00028493,2]
[426026852,1782119510000,-500.0,0.00028493,2]
[426026849,1782119510000,-500.0,0.00028493,2]
[426026855,1782119510000,-585.59,0.00028493,2]
[426026880,1782119510000,-500.0,0.00028493,2]
[426026867,1782119510000,-523.40320344,0.00028493,2]
[426026884,1782119510000,-538.73,0.00028493,2]
[426026908,1782119510000,-500.0,0.00028493,2]
[426026917,1782119510000,-500.0,0.00028493,2]
[426026907,1782119510000,-500.0,0.00028493,2]
[426026915,1782119510000,-500.0,0.00028493,2]
[426026913,1782119510000,-500.0,0.00028493,2]
[426026910,1782119510000,-500.0,0.00028493,2]
[426026914,1782119510000,-916.73,0.00028493,2]
[426026912,1782119510000,-500.0,0.00028493,2]
[426026911,1782119510000,-500.0,0.00028493,2]
[426026916,1782119510000,-500.0,0.00028493,2]
[426026909,1782119510000,-676.49,0.00028493,2]
[426026919,1782119510000,-500.0,0.00028493,2]
[426026929,1782119510000,-1335.55,0.00028493,2]
[426026918,1782119510000,-500.0,0.00028493,2]
[426026920,1782119510000,-500.0,0.00028493,2]
[426026926,1782119510000,-500.0,0.00028493,2]
[426026924,1782119510000,-500.0,0.00028493,2]
[426026923,1782119510000,-1001.58,0.00028493,2]
[426026927,1782119510000,-554.57,0.00028493,2]
[426026925,1782119510000,-500.0,0.00028493,2]
[426026928,1782119510000,-748.95,0.00028493,2]
[426026881,1782119510000,-500.0,0.00028493,2]
[426026922,1782119510000,-500.0,0.00028493,2]
[426026906,1782119510000,-308.5424024,0.00028493,2]
[426026921,1782119510000,-745.56,0.00028493,2]
[426026901,1782119510000,-500.0,0.00028493,2]
[426026904,1782119510000,-500.0,0.00028493,2]
[426026882,1782119510000,-631.36,0.00028493,2]
[426026885,1782119510000,-901.57,0.00028493,2]
[426026893,1782119510000,-500.0,0.00028493,2]
[426026887,1782119510000,-500.0,0.00028493,2]
[426026888,1782119510000,-500.0,0.00028493,2]
[426026889,1782119510000,-838.97,0.00028493,2]
[426026891,1782119510000,-500.0,0.00028493,2]
[426026892,1782119510000,-517.6064002,0.00028493,2]
[426026883,1782119510000,-512.40044149,0.00028493,2]
[426026890,1782119510000,-576.18,0.00028493,2]
[426026886,1782119510000,-500.0,0.00028493,2]
[426026895,1782119510000,-500.0,0.00028493,2]
[426026903,1782119510000,-1224.66,0.00028493,2]
[426026900,1782119510000,-670.29,0.00028493,2]
[426026899,1782119510000,-739.86,0.00028493,2]
[426026898,1782119510000,-951.64,0.00028493,2]
[426026896,1782119510000,-542.93,0.00028493,2]
[426026902,1782119510000,-500.0,0.00028493,2]
[426026894,1782119510000,-500.0,0.00028493,2]
[426026905,1782119510000,-500.0,0.00028493,2]
[426026930,1782119510000,-500.0,0.00028493,2]
[426026897,1782119510000,-500.0,0.00028493,2]
[426026973,1782119511000,-500.0,0.00028493,2]
[426026963,1782119511000,-500.0,0.00028493,2]
[426026962,1782119511000,-500.0,0.00028493,2]
[426026960,1782119511000,-873.0,0.00028493,2]
[426026958,1782119511000,-521.85299613,0.00028493,2]
[426026964,1782119511000,-500.0,0.00028493,2]
[426026968,1782119511000,-534.9,0.00028493,2]
[426026971,1782119511000,-500.0,0.00028493,2]
[426026977,1782119511000,-500.0,0.00028493,2]
[426026976,1782119511000,-500.0,0.00028493,2]
[426026967,1782119511000,-500.0,0.00028493,2]
[426026970,1782119511000,-152.96422225,0.00028493,2]
[426026985,1782119511000,-500.0,0.00028493,2]
[426026978,1782119511000,-500.0,0.00028493,2]
[426026969,1782119511000,-539.1,0.00028493,2]
[426026972,1782119511000,-500.0,0.00028493,2]
[426026974,1782119511000,-500.0,0.00028493,2]
[426026979,1782119511000,-607.9,0.00028493,2]
[426026980,1782119511000,-500.0,0.00028493,2]
[426026983,1782119511000,-814.96,0.00028493,2]
[426026991,1782119511000,-500.0,0.00028493,2]
[426026981,1782119511000,-621.2,0.00028493,2]
[426026984,1782119511000,-660.72,0.00028493,2]
[426026982,1782119511000,-500.0,0.00028493,2]
[426026961,1782119511000,-414.86288567,0.00028493,2]
[426026975,1782119511000,-543.34192139,0.00028493,2]
[426026957,1782119511000,-500.0,0.00028493,2]
[426026934,1782119511000,-500.0,0.00028493,2]
[426026965,1782119511000,-500.0,0.00028493,2]
[426026936,1782119511000,-500.0,0.00028493,2]
[426026933,1782119511000,-500.0,0.00028493,2]
[426026931,1782119511000,-500.0,0.00028493,2]
[426026935,1782119511000,-500.0,0.00028493,2]
[426026990,1782119511000,-500.0,0.00028493,2]
[426026941,1782119511000,-500.0,0.00028493,2]
[426026932,1782119511000,-500.0,0.00028493,2]
[426026937,1782119511000,-782.92,0.00028493,2]
[426026940,1782119511000,-643.36,0.00028493,2]
[426026938,1782119511000,-542.8,0.00028493,2]
[426026939,1782119511000,-500.0,0.00028493,2]
[426026943,1782119511000,-500.0,0.00028493,2]
[426026953,1782119511000,-823.84,0.00028493,2]
[426026942,1782119511000,-500.0,0.00028493,2]
[426026946,1782119511000,-656.6,0.00028493,2]
[426026950,1782119511000,-500.0,0.00028493,2]
[426026945,1782119511000,-795.59,0.00028493,2]
[426026948,1782119511000,-500.0,0.00028493,2]
[426026944,1782119511000,-500.0,0.00028493,2]
[426026952,1782119511000,-500.0,0.00028493,2]
[426026951,1782119511000,-500.0,0.00028493,2]
[426026947,1782119511000,-834.63,0.00028493,2]
[426026949,1782119511000,-500.0,0.00028493,2]
[426026955,1782119511000,-500.0,0.00028493,2]
[426026956,1782119511000,-584.46426515,0.00028493,2]
[426026954,1782119511000,-500.0,0.00028493,2]
[426026966,1782119511000,-880.48,0.00028493,2]
[426026959,1782119511000,-500.0,0.00028493,2]
[426026986,1782119511000,-500.0,0.00028493,2]
[426026989,1782119511000,-1389.52,0.00028493,2]
[426026988,1782119511000,-500.0,0.00028493,2]
[426027022,1782119511000,-500.0,0.00028493,2]
[426027018,1782119511000,-500.0,0.00028493,2]
[426027021,1782119511000,-772.7,0.00028493,2]
[426027023,1782119511000,-807.41,0.00028493,2]
[426027028,1782119511000,-500.0,0.00028493,2]
[426027030,1782119511000,-500.0,0.00028493,2]
[426027027,1782119511000,-509.27051061,0.00028493,2]
[426027029,1782119511000,-500.0,0.00028493,2]
[426027031,1782119511000,-500.0,0.00028493,2]
[426027039,1782119511000,-500.0,0.00028493,2]
[426027035,1782119511000,-500.0,0.00028493,2]
[426027032,1782119511000,-500.0,0.00028493,2]
[426027037,1782119511000,-551.69,0.00028493,2]
[426027034,1782119511000,-500.0,0.00028493,2]
[426027038,1782119511000,-500.0,0.00028493,2]
[426027033,1782119511000,-7269.9,0.00028493,2]